bitfinex-derivatives/quotes_SOLF0:USTF0_20250522
["timestamp","ask_amount","ask_price","bid_price","bid_amount"]
[1747945977795,0.04240322,178.33,178.32,227.8462]
[1747945978095,11.3026404,178.44,178.32,222.24]
[1747945978292,11.3026404,178.44,178.36,5.6048]
[1747945978695,11.3026404,178.44,178.35,115.68]
[1747945978998,0.04078231,178.41,178.38,0.04205984]
[1747945979195,5.64438231,178.41,178.38,0.04205984]
[1747945979503,0.04078231,178.41,178.38,0.04205984]
[1747945979797,5.64418231,178.41,178.38,0.04205984]
[1747945980194,0.04078231,178.41,178.38,0.04205984]
[1747945980594,5.64418231,178.41,178.38,0.04205984]
[1747945981299,0.04078231,178.41,178.38,0.04205984]
[1747945982000,0.04078231,178.41,178.38,5.64625984]
[1747945982593,0.04078231,178.41,178.39,5.6039]
[1747945982899,0.04078231,178.41,178.38,0.04205984]
[1747945983094,0.04078231,178.41,178.39,5.6037]
[1747945984504,0.04078231,178.41,178.38,5.64635984]
[1747945986902,0.04078231,178.41,178.39,5.604]
[1747945987197,0.04078231,178.41,178.39,5.6038]
[1747945987794,0.04078231,178.41,178.39,5.604]
[1747945989108,0.04078231,178.41,178.38,5.64625984]
[1747945991010,0.04078231,178.41,178.38,0.04205984]
[1747945991808,5.604,178.4,178.38,0.04205984]
[1747945993213,0.04078231,178.41,178.38,0.04205984]
[1747945994513,0.04078231,178.41,178.39,5.6037]
[1747945994716,0.04078231,178.41,178.38,0.04205984]
[1747945995017,5.64428231,178.41,178.38,5.64635984]
[1747945995318,0.04078231,178.41,178.38,0.04205984]
[1747945996314,0.04078231,178.41,178.39,5.6038]
[1747945996612,0.04078231,178.41,178.38,0.04205984]
[1747945997117,5.6037,178.4,178.38,0.04205984]
[1747945997921,5.64428231,178.41,178.38,5.64635984]
[1747945999417,0.04078231,178.41,178.38,0.04205984]
[1747945999623,0.04078231,178.41,178.4,5.6037]
[1747946021731,0.04078231,178.41,178.38,4.41481014]
[1747946022430,0.04078231,178.41,178.36,5.83049065]
[1747946022631,5.6049,178.37,178.35,115.56]
[1747946022833,0.04078231,178.41,178.34,4.38432865]
[1747946023031,1.9845,178.43,178.34,4.38432865]
[1747946023230,5.6053,178.35,178.34,4.38432865]
[1747946023932,5.6056,178.34,178.33,0.0396096]
[1747946025733,5.6053,178.35,178.33,0.0396096]
[1747946025932,0.0375349,178.36,178.33,0.0396096]
[1747946026630,0.0375349,178.36,178.34,5.6053]
[1747946026939,0.0375349,178.36,178.33,0.0396096]
[1747946027232,0.0375349,178.36,178.34,5.6056]
[1747946027437,0.0375349,178.36,178.33,0.0396096]
[1747946028537,5.6426349,178.36,178.33,0.0396096]
[1747946029842,5.6426349,178.36,178.33,5.6455096]
[1747946031135,0.0375349,178.36,178.33,5.6455096]
[1747946031336,0.0375349,178.36,178.33,0.0396096]
[1747946031837,0.0375349,178.36,178.35,5.6053]
[1747946032143,0.0375349,178.36,178.35,121.2053]
[1747946032336,5.22622547,178.42,178.39,5.6037]
[1747946032730,5.22622547,178.42,178.38,5.6042]
[1747946033242,5.26864967,178.42,178.38,5.64235525]
[1747946033442,10.87194967,178.42,178.38,5.64235525]
[1747946033740,10.87194967,178.42,178.38,0.03815525]
[1747946033741,5.6457242,178.42,178.38,0.03815525]
[1747946034145,5.6457242,178.42,178.38,5.64245525]
[1747946035541,0.0424242,178.42,178.39,5.6039]
[1747946036446,0.0424242,178.42,178.4,5.6037]
[1747946037053,0.0424242,178.42,178.41,5.6034]
[1747946039545,0.0424242,178.42,178.38,115.61815525]
[1747946040649,0.0424242,178.42,178.4,5.6034]
[1747946041242,0.0424242,178.42,178.41,5.6034]
[1747946045154,2.42e-05,178.42,178.41,5.6034]
[1747946047659,5.22622547,178.5,178.45,5.602]
[1747946048656,5.64139783,178.49,178.46,0.04025651]
[1747946049856,5.6012,178.48,178.46,0.04025651]
[1747946050056,0.04039783,178.49,178.46,0.04025651]
[1747946050247,5.64149783,178.49,178.46,0.04025651]
[1747946051859,5.64149783,178.49,178.46,5.64205651]
[1747946053958,5.6012,178.48,178.46,0.04025651]
[1747946054157,0.04039783,178.49,178.46,0.04025651]
[1747946054659,5.6014,178.48,178.46,0.04025651]
[1747946055858,5.6015,178.47,178.46,0.04025651]
[1747946056061,5.6015,178.47,178.46,5.651e-05]
[1747946056358,5.6031,178.42,178.38,115.48]
[1747946056554,5.6031,178.42,178.39,5.6038]
[1747946056755,5.6029,178.43,178.39,5.6038]
[1747946056953,3.8973,178.47,178.39,5.604]
[1747946057148,0.04045084,178.45,178.41,0.03987861]
[1747946057947,5.6031,178.42,178.41,0.03987861]
[1747946059752,5.6031,178.42,178.41,7.861e-05]
[1747946060066,5.6053,178.35,178.34,115.5]
[1747946060356,115.5,178.44,178.34,115.5]
[1747946060858,115.5,178.44,178.33,5.6059]
[1747946061160,0.04129721,178.4,178.37,0.04256597]
[1747946061657,5.6043,178.38,178.37,0.04256597]
[1747946062056,115.54129721,178.4,178.3,115.5]
[1747946062356,1.8725,178.39,178.3,115.5]
[1747946062858,1.8725,178.39,178.31,5.6063]
[1747946063058,0.03571947,178.37,178.33,0.04082812]
[1747946063758,5.6053,178.35,178.33,0.04082812]
[1747946065660,5.6056,178.34,178.33,0.04082812]
[1747946070763,5.6056,178.34,178.33,2.812e-05]
[1747946071165,5.6073,178.29,178.26,115.54]
[1747946071464,117.4315,178.36,178.26,115.54]
[1747946071761,5.6066,178.31,178.26,115.54]
[1747946072162,0.04260521,178.3,178.28,5.6072]
[1747946073271,5.64950521,178.3,178.27,5.64624599]
[1747946074269,0.04260521,178.3,178.27,0.03854599]
[1747946074653,5.6075,178.28,178.27,0.03854599]
[1747946074953,121.1675,178.28,178.27,0.03854599]
[1747946078656,121.1675,178.28,178.27,4.599e-05]
[1747946078862,115.56,178.28,178.18,115.56]
[1747946079768,0.03986068,178.25,178.21,0.03907687]
[1747946079958,5.6094,178.22,178.21,0.03907687]
[1747946082657,5.6094,178.22,178.21,7.687e-05]
[1747946084170,5.611,178.17,178.14,5.6118]
[1747946084666,119.334,178.24,178.13,5.6121]
[1747946084870,119.334,178.24,178.12,115.56]
[1747946085071,119.334,178.24,178.08,121.2956]
[1747946085365,5.6116,178.15,178.14,0.03944511]
[1747946088360,115.6,178.15,178.04,119.5379]
[1747946088568,115.6,178.15,178.05,5.6147]
[1747946088770,2.018,178.14,178.05,5.6147]
[1747946088971,5.614,178.08,178.05,5.6147]
[1747946089169,115.62,178.11,178.04,115.6]
[1747946089371,0.03719757,178.09,178.04,115.6]
[1747946089571,5.65089757,178.09,178.04,115.6]
[1747946089772,0.03719757,178.09,178.07,5.6141]
[1747946090277,0.03719757,178.09,178.04,115.6]
[1747946091379,5.65059757,178.09,178.04,115.6]
[1747946091974,0.03719757,178.09,178.06,5.6141]
[1747946092174,0.03719757,178.09,178.04,115.6]
[1747946092577,0.03719757,178.09,178.08,5.6138]
[1747946092781,0.03719757,178.09,178.04,115.6]
[1747946093179,0.03719757,178.09,178.0,121.5877]
[1747946094187,9.05260465,178.08,177.99,5.6165]
[1747946094382,0.03789341,178.05,177.99,5.6165]
[1747946094791,0.03789341,178.05,177.95,6.0461]
[1747946094792,5.6167,177.99,177.95,11.6639]
[1747946095087,5.6580298,177.99,177.95,11.6639]
[1747946095385,5.6580298,177.99,177.96,5.6175]
[1747946095689,0.0413298,177.99,177.95,6.0461]
[1747946096885,0.0413298,177.99,177.97,5.617]
[1747946097284,0.0413298,177.99,177.95,6.0461]
[1747946097886,0.0413298,177.99,177.96,5.6175]
[1747946098080,0.0413298,177.99,177.95,6.0461]
[1747946099693,0.0413298,177.99,177.96,5.6175]
[1747946099993,0.0413298,177.99,177.95,6.0461]
[1747946100295,5.6173,177.97,177.91,115.66]
[1747946100593,115.7213298,177.99,177.91,115.66]
[1747946102795,0.0413298,177.99,177.91,115.66]
[1747946103096,115.72,178.05,177.92,9.05260465]
[1747946103291,115.72,178.05,177.93,9.05260465]
[1747946103487,600.72,178.1,177.93,9.05260465]
[1747946103794,600.72,178.1,177.93,10.03032499]
[1747946103996,106.7,178.18,177.93,10.03032499]
[1747946103997,600.92,178.19,178.01,9.05260465]
[1747946104295,600.92,178.19,178.02,226.4177]
[1747946104692,5.6127,178.12,178.06,5.6141]
[1747946104992,0.03968899,178.11,178.07,0.03636164]
[1747946105193,5.65278899,178.11,178.07,5.65036164]
[1747946105798,5.6133,178.1,178.07,0.03636164]
[1747946106092,0.03968899,178.11,178.07,0.03636164]
[1747946108496,5.6137,178.09,178.07,0.03636164]
[1747946108696,0.03968899,178.11,178.07,0.03636164]
[1747946109599,5.6133,178.1,178.07,0.03636164]
[1747946110100,5.6132,178.1,178.07,0.03636164]
[1747946110495,0.03968899,178.11,178.07,0.03636164]
[1747946112001,5.6135,178.09,178.07,0.03636164]
[1747946112197,0.03968899,178.11,178.07,0.03636164]
[1747946112397,5.6138,178.08,178.07,0.03636164]
[1747946114396,0.03968899,178.11,178.07,0.03636164]
[1747946115006,5.6136,178.09,178.07,0.03636164]
[1747946115300,0.03968899,178.11,178.07,0.03636164]
[1747946116603,5.6138,178.08,178.07,0.03636164]
[1747946117507,5.6137,178.09,178.07,0.03636164]
[1747946117702,0.03968899,178.11,178.07,0.03636164]
[1747946118708,0.03968899,178.11,178.07,5.65016164]
[1747946119206,0.03968899,178.11,178.07,0.03636164]
[1747946122905,5.6132,178.1,178.07,0.03636164]
[1747946123614,5.6132,178.1,178.07,5.65036164]
[1747946123909,5.65258899,178.11,178.07,0.03636164]
[1747946124100,0.03968899,178.11,178.07,0.03636164]
[1747946124513,0.03968899,178.11,178.07,5.65016164]
[1747946124706,0.03968899,178.11,178.07,0.03636164]
[1747946125206,0.03968899,178.11,178.1,5.6131]
[1747946125504,116.18,178.16,178.08,116.18]
[1747946125811,116.18,178.16,178.12,5.6122]
[1747946126109,116.18,178.16,178.09,1.8712]
[1747946126305,0.04124441,178.14,178.12,5.6125]
[1747946127313,5.65314441,178.14,178.11,5.65372631]
[1747946127810,0.04124441,178.14,178.11,0.04102631]
[1747946128011,5.6123,178.13,178.11,0.04102631]
[1747946128209,0.04124441,178.14,178.11,0.04102631]
[1747946128913,5.65334441,178.14,178.11,5.65382631]
[1747946129814,5.65334441,178.14,178.11,0.04102631]
[1747946130017,5.6123,178.13,178.11,0.04102631]
[1747946131014,5.65334441,178.14,178.11,0.04102631]
[1747946131714,0.04124441,178.14,178.11,5.65352631]
[1747946131918,0.04124441,178.14,178.11,0.04102631]
[1747946133220,0.04124441,178.14,178.12,5.6123]
[1747946133413,0.04124441,178.14,178.11,0.04102631]
[1747946133809,0.04124441,178.14,178.13,5.6122]
[1747946142321,0.04124441,178.14,178.12,5.6124]
[1747946143724,0.04124441,178.14,178.11,121.79372631]
[1747946144222,0.04124441,178.14,178.12,5.6124]
[1747946144418,0.04124441,178.14,178.11,116.18102631]
[1747946144927,0.04124441,178.14,178.11,121.79362631]
[1747946145320,0.04124441,178.14,178.11,116.18102631]
[1747946145924,5.65314441,178.14,178.11,121.79382631]
[1747946147223,5.65314441,178.14,178.11,116.18102631]
[1747946147419,5.6123,178.13,178.11,116.18102631]
[1747946147828,5.65324441,178.14,178.11,121.79372631]
[1747946148730,0.04124441,178.14,178.11,116.18102631]
[1747946149226,0.04124441,178.14,178.13,5.6122]
[1747946150734,0.04124441,178.14,178.12,5.6124]
[1747946151037,116.40124441,178.14,178.05,4.35573876]
[1747946151334,1.9391,178.13,178.05,120.71573876]
[1747946151633,1.9391,178.13,178.07,5.6141]
[1747946152026,1.9391,178.13,178.08,0.04324623]
[1747946153238,0.04124441,178.14,178.08,0.04324623]
[1747946153626,0.04124441,178.14,178.09,121.9934]
[1747946153627,5.6127,178.12,178.09,121.9934]
[1747946153827,0.04124441,178.14,178.09,116.38]
[1747946154326,5.6123,178.13,178.1,5.6131]
[1747946154736,0.04124441,178.14,178.09,116.38]
[1747946155140,5.6126,178.12,178.09,121.9932]
[1747946155838,5.6122,178.13,178.1,5.6131]
[1747946156038,0.04124441,178.14,178.09,116.38]
[1747946156944,0.04124441,178.14,178.12,5.6125]
[1747946157546,5.65314441,178.14,178.11,5.6126]
[1747946157746,0.04124441,178.14,178.09,116.38]
[1747946157945,0.04124441,178.14,178.04,4.35573876]
[1747946158135,9.0776597,178.13,178.04,4.35573876]
[1747946158441,9.0776597,178.17,178.05,116.38]
[1747946158643,1.8755,178.18,178.05,116.38]
[1747946158945,0.03692373,178.13,178.1,0.04098166]
[1747946159246,0.03692373,178.13,178.11,116.38]
[1747946160051,5.6125,178.12,178.11,116.38]
[1747946161149,0.03692373,178.13,178.11,116.38]
[1747946161855,5.64912373,178.13,178.11,116.38]
[1747946162053,0.03692373,178.13,178.12,5.6125]
[1747946167858,0.03692373,178.13,178.12,121.9925]
[1747946168055,0.03692373,178.13,178.12,5.6125]
[1747946168251,0.03692373,178.13,178.12,121.9925]
[1747946168454,0.03692373,178.13,178.12,5.6125]
[1747946168854,0.03692373,178.13,178.12,121.9925]
[1747946169059,0.03692373,178.13,178.11,116.38]
[1747946169858,5.64932373,178.13,178.11,116.38]
[1747946170862,0.03692373,178.13,178.11,116.38]
[1747946171250,0.03692373,178.13,178.12,5.6125]
[1747946171656,0.03692373,178.13,178.11,116.38]
[1747946171960,0.03692373,178.13,178.11,121.9927]
[1747946173161,5.64912373,178.13,178.11,116.38]
[1747946173563,0.03692373,178.13,178.11,116.38]
[1747946174560,0.03692373,178.13,178.11,121.9928]
[1747946175665,0.03692373,178.13,178.12,5.6125]
[1747946179963,5.18698307,178.2,178.16,5.611]
[1747946180163,5.18698307,178.2,178.17,115.72]
[1747946180462,5.6103,178.19,178.17,115.72]
[1747946181062,10.83637467,178.2,178.17,121.3309]
[1747946181263,5.22627467,178.2,178.17,115.72]
[1747946181661,5.6103,178.19,178.17,115.72]
[1747946181863,5.22627467,178.2,178.17,115.72]
[1747946182365,5.6109,178.17,178.16,0.03623867]
[1747946182563,5.6109,178.17,178.16,115.73623867]
[1747946183569,5.6109,178.17,178.16,0.03623867]
[1747946183762,5.6109,178.17,178.16,115.73623867]
[1747946185070,5.6107,178.18,178.16,115.73623867]
[1747946185266,0.0392916,178.2,178.16,115.73623867]
[1747946185864,0.0392916,178.2,178.16,0.03623867]
[1747946186070,5.6109,178.17,178.16,0.03623867]
[1747946189666,7.19148307,178.19,178.11,115.7]
[1747946190164,5.6126,178.12,178.11,115.7]
[1747946190866,5.6128,178.11,178.1,115.73770876]
[1747946192275,5.6128,178.11,178.1,0.03770876]
[1747946195079,5.6128,178.11,178.1,8.76e-06]
[1747946218000,5.6125,178.12,178.1,8.76e-06]
[1747946218203,0.03899872,178.13,178.1,8.76e-06]
[1747946218798,5.6128,178.12,178.1,8.76e-06]
[1747946219199,0.03899872,178.13,178.1,8.76e-06]
[1747946220501,5.6128,178.11,178.1,8.76e-06]
[1747946225105,5.6127,178.12,178.1,8.76e-06]
[1747946226608,5.65129872,178.13,178.1,5.61310876]
[1747946229411,5.65129872,178.13,178.11,122.5726]
[1747946230609,0.03899872,178.13,178.12,5.6125]
[1747946232114,5.23834212,178.17,178.11,116.96]
[1747946232803,5.6118,178.15,178.12,5.6124]
[1747946233003,5.64773052,178.15,178.12,5.6124]
[1747946234708,0.03593052,178.15,178.11,116.96]
[1747946235310,5.612,178.14,178.11,122.5727]
[1747946235811,5.64753052,178.15,178.12,5.6123]
[1747946236913,5.64753052,178.15,178.13,5.6122]
[1747946237217,0.03593052,178.15,178.11,116.96]
[1747946238313,0.03593052,178.15,178.13,5.6121]
[1747946239915,5.64753052,178.15,178.13,5.6121]
[1747946241015,0.03593052,178.15,178.13,5.6121]
[1747946241312,0.03593052,178.15,178.12,5.6124]
[1747946242420,5.612,178.14,178.11,122.5727]
[1747946242718,0.03593052,178.15,178.11,116.96]
[1747946242905,5.6122,178.14,178.11,116.96]
[1747946243111,0.03593052,178.15,178.11,122.5728]
[1747946244518,5.6124,178.13,178.11,122.5728]
[1747946245511,5.6124,178.13,178.11,116.96]
[1747946245708,0.03593052,178.15,178.11,116.96]
[1747946246326,5.6125,178.12,178.11,116.96]
[1747946246825,0.03593052,178.15,178.11,116.96]
[1747946248220,5.6125,178.12,178.11,116.96]
[1747946249425,5.6123,178.13,178.11,116.96]
[1747946249616,0.03593052,178.15,178.11,116.96]
[1747946250015,5.6122,178.14,178.11,122.5726]
[1747946250529,5.6123,178.13,178.11,122.5726]
[1747946250829,0.03593052,178.15,178.11,122.5726]
[1747946251126,5.6121,178.14,178.11,122.5726]
[1747946251428,5.6121,178.14,178.12,5.6125]
[1747946251926,5.6121,178.14,178.11,116.96]
[1747946252126,5.6121,178.14,178.12,5.6125]
[1747946252322,0.03593052,178.15,178.12,5.6125]
[1747946252829,5.6119,178.14,178.11,122.5727]
[1747946255927,5.6122,178.13,178.11,122.5727]
[1747946257531,5.6121,178.14,178.12,5.6125]
[1747946257729,0.03593052,178.15,178.1,8.76e-06]
[1747946258325,5.6124,178.13,178.1,5.61290876]
[1747946258929,5.6125,178.12,178.1,8.76e-06]
[1747946259325,0.03593052,178.15,178.1,8.76e-06]
[1747946259730,5.6124,178.13,178.1,5.61290876]
[1747946263433,5.6125,178.12,178.1,5.61290876]
[1747946264446,5.612,178.14,178.1,8.76e-06]
[1747946264933,5.6122,178.13,178.11,5.6127]
[1747946266737,5.6122,178.13,178.11,121.6327]
[1747946267136,5.6125,178.12,178.11,116.02]
[1747946267630,0.03593052,178.15,178.11,116.02]
[1747946267836,5.6123,178.13,178.11,116.02]
[1747946269034,5.6125,178.12,178.11,116.02]
[1747946270032,5.6128,178.11,178.1,8.76e-06]
[1747946279040,5.6126,178.12,178.1,8.76e-06]
[1747946279743,5.23834212,178.13,178.1,8.76e-06]
[1747946279744,5.6128,178.11,178.1,8.76e-06]
[1747946281247,5.6126,178.12,178.1,8.76e-06]
[1747946282239,11.04174901,178.14,178.1,8.76e-06]
[1747946282447,5.6128,178.11,178.1,8.76e-06]
[1747946283346,5.6126,178.12,178.1,8.76e-06]
[1747946284348,5.6126,178.12,178.1,5.61310876]
[1747946284849,5.6126,178.12,178.1,8.76e-06]
[1747946286752,5.6128,178.11,178.1,8.76e-06]
[1747946288854,5.80340689,178.14,178.1,8.76e-06]
[1747946288855,5.6126,178.12,178.1,8.76e-06]
[1747946289053,11.07767953,178.15,178.1,8.76e-06]
[1747946289355,5.6125,178.13,178.1,8.76e-06]
[1747946289650,5.6125,178.13,178.1,5.61300876]
[1747946290352,5.83933741,178.15,178.1,5.61300876]
[1747946290750,5.6124,178.13,178.1,5.61300876]
[1747946291756,5.6124,178.13,178.11,5.6128]
[1747946291957,5.6124,178.13,178.1,8.76e-06]
[1747946292254,5.6124,178.13,178.1,121.39290876]
[1747946292453,5.6124,178.13,178.1,115.78000876]
[1747946293650,5.6124,178.13,178.11,5.6128]
[1747946293852,5.6124,178.13,178.1,115.78000876]
[1747946294161,5.6124,178.13,178.1,121.39300876]
[1747946294958,5.6124,178.13,178.11,5.6128]
[1747946296362,5.6124,178.13,178.1,121.39300876]
[1747946297764,5.6125,178.12,178.1,121.39300876]
[1747946298167,5.6125,178.12,178.1,115.78000876]
[1747946299566,5.6125,178.12,178.1,121.39310876]
[1747946300669,5.27427264,178.15,178.1,115.78000876]
[1747946300670,5.6128,178.11,178.1,115.78000876]
[1747946300869,5.6128,178.11,178.1,8.76e-06]
[1747946302171,5.23834212,178.14,178.1,8.76e-06]
[1747946302373,5.23834212,178.14,178.12,5.80340689]
[1747946302674,0.03593052,178.15,178.12,5.80340689]
[1747946302975,6.98445616,178.16,178.14,5.80340689]
[1747946303171,6.98445616,178.16,178.15,115.72]
[1747946304075,6.98445616,178.16,178.15,121.3316]
[1747946305179,0.03817935,178.17,178.16,5.6113]
[1747946313984,0.03817935,178.17,178.15,121.52340689]
[1747946314289,0.03817935,178.17,178.15,115.72]
[1747946314488,5.64937935,178.17,178.15,115.72]
[1747946315392,0.03817935,178.17,178.15,121.3316]
[1747946315689,0.03817935,178.17,178.15,115.72]
[1747946316191,0.03817935,178.17,178.16,5.6113]
[1747946319391,0.03817935,178.17,178.15,121.3315]
[1747946319892,0.03817935,178.17,178.15,115.72]
[1747946321590,0.03817935,178.17,178.16,5.6113]
[1747946348104,0.03817935,178.17,178.15,5.6115]
[1747946348310,0.03817935,178.17,178.14,4.44577314]
[1747946348706,5.6116,178.15,178.14,4.44577314]
[1747946349307,5.6114,178.16,178.14,4.44577314]
[1747946349607,0.03817935,178.17,178.14,4.44577314]
[1747946349814,5.64937935,178.17,178.14,4.44577314]
[1747946350313,0.03817935,178.17,178.14,4.44577314]
[1747946350703,0.03817935,178.17,178.16,5.6113]
[1747946350913,0.03817935,178.17,178.16,121.2113]
[1747946352714,0.03817935,178.17,178.16,125.62132232]
[1747946353113,0.03817935,178.17,178.16,131.42472921]
[1747946354316,0.03817935,178.17,178.16,125.62132232]
[1747946354515,0.03817935,178.17,178.16,131.42472921]
[1747946354814,0.03817935,178.17,178.16,127.01470689]
[1747946357315,0.03817935,178.17,178.16,131.42472921]
[1747946361822,0.03817935,178.17,178.16,127.01470689]
[1747946362718,0.03817935,178.17,178.16,5.6113]
[1747946363820,0.03817935,178.17,178.16,11.41470689]
[1747946364822,0.03817935,178.17,178.16,5.6113]
[1747946370829,0.03817935,178.17,178.15,115.48]
[1747946371119,5.80340689,178.16,178.14,4.44577314]
[1747946371322,11.70130689,178.16,178.11,5.88018783]
[1747946371619,5.8979,178.16,178.11,5.88018783]
[1747946372019,11.5094,178.16,178.13,5.612]
[1747946372216,5.8979,178.16,178.11,5.88018783]
[1747946372515,5.8979,178.16,178.12,0.0364475]
[1747946372716,5.6118,178.15,178.12,5.6487475]
[1747946373524,11.70130689,178.16,178.12,0.0364475]
[1747946373722,5.8979,178.16,178.12,0.0364475]
[1747946374527,5.6117,178.15,178.12,0.0364475]
[1747946374824,5.8979,178.16,178.12,0.0364475]
[1747946375821,11.5092,178.16,178.13,5.612]
[1747946376725,11.5092,178.16,178.12,0.0364475]
[1747946376925,5.8979,178.16,178.12,0.0364475]
[1747946377625,5.8979,178.16,178.14,5.6119]
[1747946378018,11.5092,178.16,178.12,0.0364475]
[1747946378215,11.5092,178.16,178.13,5.612]
[1747946378828,5.8979,178.16,178.14,5.6118]
[1747946379425,11.5092,178.16,178.13,5.6122]
[1747946380031,11.5092,178.16,178.12,0.0364475]
[1747946380032,5.8979,178.16,178.12,0.0364475]
[1747946380525,3.9625,178.16,178.15,5.6116]
[1747946380729,0.03817935,178.17,178.15,5.6116]
[1747946382428,0.03817935,178.17,178.16,5.6113]
[1747946385931,0.03817935,178.17,178.13,5.612]
[1747946387135,5.6115,178.16,178.13,5.612]
[1747946388328,5.6116,178.15,178.12,5.6488475]
[1747946388932,5.6114,178.16,178.13,5.6121]
[1747946389133,0.03817935,178.17,178.12,0.0364475]
[1747946389531,5.6122,178.13,178.12,0.0364475]
[1747946398937,2.0482,178.16,178.12,0.0364475]
[1747946399144,5.612,178.14,178.12,5.6489475]
[1747946400546,5.612,178.14,178.12,0.0364475]
[1747946403347,5.6117,178.15,178.12,5.6489475]
[1747946403642,115.43817935,178.17,178.12,0.0364475]
[1747946404147,5.6114,178.16,178.13,5.6122]
[1747946404351,0.03817935,178.17,178.13,5.6122]
[1747946404648,5.6116,178.15,178.12,5.6488475]
[1747946405047,5.6119,178.14,178.12,5.6488475]
[1747946405248,5.6119,178.14,178.12,0.0364475]
[1747946405551,0.03817935,178.17,178.12,0.0364475]
[1747946405742,5.6117,178.15,178.12,5.6487475]
[1747946406649,5.6117,178.15,178.13,5.6122]
[1747946407555,5.6114,178.16,178.13,5.6122]
[1747946408048,0.03817935,178.17,178.13,5.6122]
[1747946408249,5.6115,178.16,178.13,5.6122]
[1747946409042,0.03817935,178.17,178.12,0.0364475]
[1747946409350,0.03817935,178.17,178.13,222.08]
[1747946409556,0.03817935,178.17,178.16,5.6113]
[1747946412448,7.935e-05,178.17,178.16,5.6113]
[1747946412648,5.24976863,178.19,178.18,5.6107]
[1747946412852,5.6084,178.26,178.18,115.42]
[1747946413548,0.03893549,178.24,178.2,0.03799004]
[1747946413755,0.03893549,178.24,178.22,5.6092]
[1747946414653,0.03893549,178.24,178.2,0.03799004]
[1747946414953,5.64783549,178.24,178.2,0.03799004]
[1747946415553,5.64783549,178.24,178.2,5.64779004]
[1747946415752,0.03893549,178.24,178.2,0.03799004]
[1747946416554,0.03893549,178.24,178.21,5.6097]
[1747946416555,5.64783549,178.24,178.21,5.6097]
[1747946416758,0.03893549,178.24,178.2,0.03799004]
[1747946417955,0.03893549,178.24,178.23,5.6091]
[1747946419453,0.03893549,178.24,178.22,5.6093]
[1747946431459,0.03893549,178.24,178.23,5.6091]
[1747946442158,0.03893549,178.24,178.22,115.24]
[1747946442364,0.03893549,178.24,178.2,115.27799004]
[1747946442667,5.6094,178.22,178.2,115.27799004]
[1747946443266,0.03893549,178.24,178.2,115.27799004]
[1747946443861,5.6097,178.22,178.2,115.27799004]
[1747946444368,5.6092,178.23,178.2,115.27799004]
[1747946444859,5.6094,178.22,178.2,120.88789004]
[1747946445266,5.6094,178.22,178.2,115.27799004]
[1747946446566,5.6094,178.22,178.2,120.88799004]
[1747946446866,5.6094,178.22,178.2,115.27799004]
[1747946447062,5.6097,178.21,178.2,115.27799004]
[1747946447362,5.6097,178.21,178.2,0.03799004]
[1747946447862,120.86,178.21,178.13,4.38050627]
[1747946448067,3.9746,178.2,178.11,4.38050627]
[1747946448864,0.04289129,178.17,178.14,0.03622514]
[1747946449267,0.04289129,178.17,178.11,4.38050627]
[1747946450067,5.6125,178.12,178.11,4.38050627]
[1747946451558,5.6125,178.12,178.09,5.6135]
[1747946451768,5.613,178.11,178.08,5.6137]
[1747946452571,5.6126,178.12,178.09,5.6135]
[1747946454874,5.64827737,178.13,178.1,5.6132]
[1747946456473,5.6126,178.12,178.09,5.6134]
[1747946457768,5.6129,178.11,178.09,5.6134]
[1747946458073,5.6129,178.11,177.93,11.2371]
[1747946458074,115.18,178.1,177.93,11.2371]
[1747946458268,9.12181105,178.06,177.92,11.68260334]
[1747946458570,9.12181105,178.06,177.96,123.94148252]
[1747946458771,5.6152,178.04,177.96,123.94148252]
[1747946458965,0.04297797,178.02,177.96,123.94148252]
[1747946459373,0.04297797,178.02,177.97,5.6172]
[1747946459569,0.04297797,178.02,177.96,123.94148252]
[1747946461374,0.04297797,178.02,177.96,115.18]
[1747946461575,5.6164,178.0,177.96,120.7973]
[1747946463675,5.6161,178.01,177.96,115.18]
[1747946464172,0.04297797,178.02,177.96,115.18]
[1747946464379,0.04297797,178.02,177.94,1.9612]
[1747946464681,0.04297797,178.02,177.95,115.22]
[1747946464877,5.6172,177.98,177.94,7.5794]
[1747946465079,5.65335079,177.98,177.95,115.22]